[Event "Marshall CC FIDE Premier April 2024"]
[Site "New York"]
[Date "2024.04.13"]
[Round "1.6"]
[White "Hebbar, Eshaan"]
[Black "Chen, Derek H"]
[Result "0-1"]
[ECO "E16"]
[WhiteElo "2201"]
[BlackElo "2070"]
[Annotator "RC"]
[PlyCount "188"]
[EventDate "2024.02.02"]
[EventType "swiss"]
[EventCountry "USA"]
[SourceTitle "playchess.com"]
[Source "ChessBase"]
[SourceQuality "1"]
[TimeControl "5400+30"]

1. d4 {[%emt 0:00:05]} Nf6 {[%emt 0:00:07]} 2. c4 {[%emt 0:00:06]} e6 {[%emt 0:00:06]} 3. Nf3 {[%emt 0:00:05]} Bb4+ {[%emt 0:00:08]} 4. Bd2 {[%emt 0:00:06]} a5 {[%emt 0:00:06]} 5. g3 {[%emt 0:01:19]} b6 {[%emt 0:00:37]} 6. Bg2 {[%emt 0:00:20]} Bb7 {[%emt 0:00:02]} 7. O-O {[%emt 0:00:40]} Bxd2 {[%emt 0:02:12]} 8. Qxd2 {[%emt 0:00:11]} d6 {[%emt 0:00:36]} 9. Nc3 {[%emt 0:01:08]} Nbd7 {[%emt 0:00:18]} 10. Qc2 {[%emt 0:07:03]} O-O {[%emt 0:01:13]} 11. Rfd1 {[%emt 0:01:17]} Qe7 {[%emt 0:14:28]} 12. a3 {[%emt 0:01:47]} c5 {[%emt 0:06:59]} 13. Qd3 {[%emt 0:07:20]} d5 {[%emt 0:09:23]} 14. cxd5 {[%emt 0:00:36]} exd5 {[%emt 0:02:04]} 15. dxc5 {[%emt 0:01:49]} Nxc5 {[%emt 0:01:50]} 16. Qc2 {[%emt 0:02:12]} Nce4 {[%emt 0:02:37]} 17. e3 {[%emt 0:03:41]} Rfc8 {[%emt 0:11:08]} 18. Qb3 {[%emt 0:02:04]} Nxf2 {[%emt 0:04:32]} 19. Re1 {[%emt 0:11:09]} Nd3 {[%emt 0:04:38]} 20. Nxd5 {[%emt 0:00:54]} Bxd5 {[%emt 0:00:18]} 21. Qxd3 {[%emt 0:00:02]} Be4 {[%emt 0:00:57]} 22. Qb3 {[%emt 0:03:47]} Rc2 {[%emt 0:16:46]} 23. Rac1 {[%emt 0:02:18]} Rxc1 {[%emt 0:08:19]} 24. Rxc1 {[%emt 0:00:15]} Qb7 {[%emt 0:01:00]} 25. Nh4 {[%emt 0:00:15]} Bxg2 {[%emt 0:03:43]} 26. Nxg2 {[%emt 0:00:10]} h5 {[%emt 0:01:10]} 27. Qc3 {[%emt 0:00:26]} Rd8 {[%emt 0:01:06]} 28. Nf4 {[%emt 0:03:25]} Qf3 {[%emt 0:00:45]} 29. Rf1 {[%emt 0:00:35]} Qe4 {[%emt 0:00:43]} 30. Re1 {[%emt 0:00:39]} h4 {[%emt 0:02:01]} 31. gxh4 {[%emt 0:01:45]} Ng4 {[%emt 0:06:08]} 32. Qc7 {[%emt 0:49:01]} Rd1 {[%emt 0:00:00]} 33. Qc8+ {[%emt 0:00:00]} Kh7 {[%emt 0:00:00]} 34. Qc3 {[%emt 0:00:00]} Rxe1+ {[%emt 0:00:00]} 35. Qxe1 {[%emt 0:00:00]} Nxe3 {[%emt 0:00:00]} 36. Qg3 {[%emt 0:00:00]} Qb1+ {[%emt 0:00:32]} 37. Kf2 {[%emt 0:00:00]} Nd1+ {[%emt 0:00:10]} 38. Ke2 {[%emt 0:00:00]} Nxb2 {[%emt 0:00:25]} 39. Qg5 {[%emt 0:00:00]} Qe4+ {[%emt 0:00:59]} 40. Kf1 {[%emt 0:00:00]} Qf3+ {[%emt 0:00:53]} 41. Kg1 {[%emt 0:00:00]} Qe3+ {[%emt 0:00:12]} 42. Kf1 {[%emt 0:00:00]} Qe4 {[%emt 0:00:46]} 43. Nh5 {[%emt 0:00:00]} Qb1+ {[%emt 0:00:35]} 44. Kf2 {[%emt 0:00:00]} Qc2+ {[%emt 0:00:25]} 45. Kf1 {[%emt 0:00:00]} Qg6 {[%emt 0:00:53]} 46. Qe5 {[%emt 0:00:00]} Nd3 {[%emt 0:00:41]} 47. Qd5 {[%emt 0:00:00]} Nc5 {[%emt 0:00:29]} 48. Qe5 {[%emt 0:00:00]} f6 {[%emt 0:00:36]} 49. Qe2 {[%emt 0:00:00]} Qd3 {[%emt 0:00:24]} 50. Ng3 {[%emt 0:00:00]} Qxe2+ {[%emt 0:00:19]} 51. Kxe2 {[%emt 0:00:00]} b5 {[%emt 0:00:29]} 52. Kd2 {[%emt 0:00:00]} b4 {[%emt 0:00:17]} 53. axb4 {[%emt 0:00:00]} axb4 {[%emt 0:00:04]} 54. Ke3 {[%emt 0:00:00]} b3 {[%emt 0:00:11]} 55. Kd2 {[%emt 0:00:00]} Kg6 {[%emt 0:00:54]} 56. Kc3 {[%emt 0:00:00]} f5 {[%emt 0:00:02]} 57. Ne2 {[%emt 0:00:00]} Kh5 {[%emt 0:00:25]} 58. Nd4 {[%emt 0:00:00]} g6 {[%emt 0:00:08]} 59. Nf3 {[%emt 0:00:00]} Nd7 {[%emt 0:01:42]} 60. h3 {[%emt 0:00:00]} Nc5 {[%emt 0:00:01]} 61. Kb2 {[%emt 0:00:00]} Kh6 {[%emt 0:00:41]} 62. Kc3 {[%emt 0:00:00]} Kh5 {[%emt 0:00:38]} 63. Kb2 {[%emt 0:00:00]} Ne4 {[%emt 0:00:02]} 64. Kxb3 {[%emt 0:00:00]} Nf2 {[%emt 0:00:01]} 65. Kc4 {[%emt 0:00:00]} Nxh3 {[%emt 0:00:01]} 66. Kd4 {[%emt 0:00:00]} Nf4 {[%emt 0:00:17]} 67. Ke3 {[%emt 0:00:20]} Ng2+ {[%emt 0:00:09]} 68. Kf2 {[%emt 0:00:07]} Nxh4 {[%emt 0:00:03]} 69. Ne5 {[%emt 0:00:07]} f4 {[%emt 0:00:32]} 70. Nd7 {[%emt 0:00:52]} Kg5 {[%emt 0:00:19]} 71. Ne5 {[%emt 0:00:27]} Kf5 {[%emt 0:00:10]} 72. Nf7 {[%emt 0:00:07]} g5 {[%emt 0:00:25]} 73. Nh6+ {[%emt 0:00:11]} Ke4 {[%emt 0:00:36]} 74. Ng4 {[%emt 0:00:26]} Ng6 {[%emt 0:00:11]} 75. Nf6+ {[%emt 0:01:54]} Kf5 {[%emt 0:00:02]} 76. Ne8 {[%emt 0:01:29]} g4 {[%emt 0:00:14]} 77. Nd6+ {[%emt 0:00:30]} Ke6 {[%emt 0:00:14]} 78. Ne4 {[%emt 0:00:21]} Ne5 {[%emt 0:00:07]} 79. Nd2 {[%emt 0:01:27]} Kf5 {[%emt 0:00:08]} 80. Kg2 {[%emt 0:00:23]} Kg5 {[%emt 0:00:57]} 81. Nf1 {[%emt 0:02:52]} Kh4 {[%emt 0:00:57]} 82. Kh2 {[%emt 0:00:36]} g3+ {[%emt 0:00:17]} 83. Kg1 {[%emt 0:00:08]} Kh3 {[%emt 0:00:24]} 84. Nd2 {[%emt 0:00:15]} f3 {[%emt 0:00:26]} 85. Ne4 {[%emt 0:00:22]} Nc4 {[%emt 0:00:42]} 86. Kh1 {[%emt 0:02:12]} Kg4 {[%emt 0:00:58]} 87. Nf6+ {[%emt 0:00:22]} Kf5 {[%emt 0:00:04]} 88. Nh5 {[%emt 0:00:07]} Kg4 {[%emt 0:00:22]} 89. Nf6+ {[%emt 0:00:07]} Kh4 {[%emt 0:00:11]} 90. Ne4 {[%emt 0:00:15]} Ne3 {[%emt 0:00:24]} 91. Kg1 {[%emt 0:00:58]} Kg4 {[%emt 0:00:08]} 92. Kh1 {[%emt 0:01:55]} Kf4 {[%emt 0:00:08]} 93. Nc3 {[%emt 0:00:34]} Ke5 {[%emt 0:01:11]} 94. Nb1 {[%emt 0:02:07]} f2 {[%emt 0:06:59]} 0-1

[Event "Marshall CC FIDE Premier April 2024"]
[Site "New York"]
[Date "2024.04.13"]
[Round "1.7"]
[White "Knowles, Chase"]
[Black "Lin, Bryan Enming"]
[Result "1/2-1/2"]
[ECO "E92"]
[WhiteElo "1978"]
[BlackElo "2087"]
[Annotator "RC"]
[PlyCount "136"]
[EventDate "2024.02.02"]
[EventType "swiss"]
[EventCountry "USA"]
[SourceTitle "playchess.com"]
[Source "ChessBase"]
[SourceQuality "1"]
[TimeControl "5400+30"]

1. Nf3 {[%emt 0:00:15]} Nf6 {[%emt 0:00:11]} 2. c4 {[%emt 0:00:13]} g6 {[%emt 0:00:14]} 3. Nc3 {[%emt 0:00:06]} Bg7 {[%emt 0:00:09]} 4. e4 {[%emt 0:00:05]} d6 {[%emt 0:00:09]} 5. d4 {[%emt 0:00:09]} O-O {[%emt 0:00:11]} 6. Be2 {[%emt 0:00:20]} e5 {[%emt 0:00:19]} 7. d5 {[%emt 0:00:19]} a5 {[%emt 0:00:08]} 8. Bg5 {[%emt 0:00:42]} h6 {[%emt 0:00:09]} 9. Be3 {[%emt 0:00:21]} Ng4 {[%emt 0:00:35]} 10. Bd2 {[%emt 0:01:28]} f5 {[%emt 0:01:06]} 11. h3 {[%emt 0:03:34]} Nf6 {[%emt 0:00:53]} 12. exf5 {[%emt 0:00:14]} gxf5 {[%emt 0:00:20]} 13. Qc1 {[%emt 0:00:39]} f4 {[%emt 0:01:56]} 14. g3 {[%emt 0:01:18]} Nh5 {[%emt 0:06:18]} 15. g4 {[%emt 0:06:02]} Nf6 {[%emt 0:00:12]} 16. g5 {[%emt 0:00:24]} hxg5 {[%emt 0:00:58]} 17. Nxg5 {[%emt 0:00:32]} Nxd5 {[%emt 0:10:50]} 18. Rg1 {[%emt 0:05:27]} Nxc3 {[%emt 0:04:12]} 19. Qxc3 {[%emt 0:02:33]} Nc6 {[%emt 0:04:34]} 20. Bf3 {[%emt 0:07:17]} Nd4 {[%emt 0:05:24]} 21. O-O-O {[%emt 0:22:09]} Bf5 {[%emt 0:03:00]} 22. Bxf4 {[%emt 0:06:30]} Nxf3 {[%emt 0:03:18]} 23. Nxf3 {[%emt 0:02:35]} Qf6 {[%emt 0:05:16]} 24. Be3 {[%emt 0:10:39]} Be4 {[%emt 0:07:24]} 25. Ng5 {[%emt 0:02:04]} Bg6 {[%emt 0:02:19]} 26. Rg3 {[%emt 0:04:13]} Qf5 {[%emt 0:08:38]} 27. Rdg1 {[%emt 0:01:24]} d5 {[%emt 0:05:28]} 28. Ne6 {[%emt 0:04:18]} Qb1+ {[%emt 0:10:44]} 29. Kd2 {[%emt 0:00:12]} d4 {[%emt 0:00:42]} 30. Rxb1 {[%emt 0:09:06]} dxc3+ {[%emt 0:00:07]} 31. Kxc3 {[%emt 0:00:35]} Rf6 {[%emt 0:04:44]} 32. Nxg7 {[%emt 0:01:22]} Bxb1 {[%emt 0:01:24]} 33. Ne8+ {[%emt 0:03:52]} Rg6 {[%emt 0:00:12]} 34. Rxg6+ {[%emt 0:00:12]} Bxg6 {[%emt 0:00:12]} 35. Nxc7 {[%emt 0:00:03]} Rd8 {[%emt 0:01:15]} 36. Nd5 {[%emt 0:00:24]} Kf7 {[%emt 0:00:35]} 37. Bb6 {[%emt 0:00:32]} Rh8 {[%emt 0:00:10]} 38. Bxa5 {[%emt 0:00:25]} Rxh3+ {[%emt 0:00:06]} 39. Kb4 {[%emt 0:00:08]} Be4 {[%emt 0:00:54]} 40. Nc3 {[%emt 0:00:04]} Bc6 {[%emt 0:00:14]} 41. Bb6 {[%emt 0:00:09]} Ke6 {[%emt 0:00:17]} 42. a4 {[%emt 0:00:23]} Rh1 {[%emt 0:00:14]} 43. Be3 {[%emt 0:00:20]} Kf5 {[%emt 0:01:14]} 44. Kc5 {[%emt 0:02:17]} Ra1 {[%emt 0:00:59]} 45. b3 {[%emt 0:00:48]} Ke6 {[%emt 0:00:39]} 46. Kb4 {[%emt 0:02:00]} Bf3 {[%emt 0:00:07]} 47. a5 {[%emt 0:00:13]} Kd6 {[%emt 0:00:46]} 48. Kb5 {[%emt 0:01:07]} Kd7 {[%emt 0:00:37]} 49. b4 {[%emt 0:00:35]} Bc6+ {[%emt 0:00:33]} 50. Kb6 {[%emt 0:00:48]} Ra3 {[%emt 0:00:55]} 51. Nd5 {[%emt 0:00:36]} Rb3 {[%emt 0:01:58]} 52. Kc5 {[%emt 0:00:52]} Ra3 {[%emt 0:01:15]} 53. Kb6 {[%emt 0:01:55]} Rb3 {[%emt 0:00:16]} 54. Bc5 {[%emt 0:00:19]} Rb2 {[%emt 0:01:02]} 55. a6 {[%emt 0:00:22]} bxa6 {[%emt 0:00:19]} 56. Kxa6 {[%emt 0:00:15]} Ke6 {[%emt 0:02:06]} 57. Nc7+ {[%emt 0:00:47]} Kd7 {[%emt 0:00:07]} 58. Nd5 {[%emt 0:00:27]} Ke6 {[%emt 0:00:11]} 59. Nc7+ {[%emt 0:01:04]} Kd7 {[%emt 0:00:06]} 60. Kb6 {[%emt 0:00:23]} Bf3 {[%emt 0:01:21]} 61. Nd5 {[%emt 0:00:23]} Be2 {[%emt 0:00:42]} 62. Kb5 {[%emt 0:00:04]} Rc2 {[%emt 0:00:54]} 63. Nb6+ {[%emt 0:00:12]} Kc7 {[%emt 0:00:10]} 64. Be3 {[%emt 0:00:06]} Kd6 {[%emt 0:00:41]} 65. Bc5+ {[%emt 0:01:44]} Kc7 {[%emt 0:00:07]} 66. Nd5+ {[%emt 0:02:36]} Kd7 67. Ne3 Rc1 {[%emt 0:10:54]} 68. Kb6 {[%emt 0:01:00]} Bxc4 {[%emt 0:00:30]} 1/2-1/2

[Event "Marshall CC FIDE Premier April 2024"]
[Site "New York"]
[Date "2024.04.13"]
[Round "1.8"]
[White "Jiang, Jason"]
[Black "Jain, Vihaan"]
[Result "1/2-1/2"]
[ECO "D10"]
[WhiteElo "2005"]
[BlackElo "1931"]
[Annotator "RC"]
[PlyCount "78"]
[EventDate "2024.02.02"]
[EventType "swiss"]
[EventCountry "USA"]
[SourceTitle "playchess.com"]
[Source "ChessBase"]
[SourceQuality "1"]
[TimeControl "5400+30"]

1. c4 {[%emt 0:06:22]} c6 {[%emt 0:00:03]} 2. Nc3 {[%emt 0:03:12]} d5 {[%emt 0:01:19]} 3. cxd5 {[%emt 0:00:15]} cxd5 {[%emt 0:00:08]} 4. d4 {[%emt 0:00:09]} Nc6 {[%emt 0:00:13]} 5. Bf4 {[%emt 0:00:50]} Nf6 {[%emt 0:00:13]} 6. e3 {[%emt 0:00:40]} a6 {[%emt 0:00:05]} 7. Bd3 {[%emt 0:02:15]} Bg4 {[%emt 0:03:57]} 8. Nge2 {[%emt 0:03:42]} e6 {[%emt 0:00:19]} 9. O-O {[%emt 0:00:56]} Bd6 {[%emt 0:00:35]} 10. Qb3 {[%emt 0:04:35]} Na5 {[%emt 0:00:41]} 11. Qa4+ {[%emt 0:07:11]} b5 {[%emt 0:06:18]} 12. Nxb5 {[%emt 0:08:50]} axb5 {[%emt 0:00:50]} 13. Qxb5+ {[%emt 0:03:26]} Ke7 {[%emt 0:02:00]} 14. f3 {[%emt 0:12:58]} Bh5 {[%emt 0:03:05]} 15. b4 {[%emt 0:05:50]} Nc4 {[%emt 0:00:18]} 16. Bxc4 {[%emt 0:02:05]} dxc4 {[%emt 0:00:09]} 17. Bg5 {[%emt 0:35:44]} Qc7 {[%emt 0:09:25]} 18. Bxf6+ {[%emt 0:00:00]} gxf6 {[%emt 0:00:05]} 19. Qxh5 {[%emt 0:00:00]} Bxb4 {[%emt 0:00:29]} 20. Rfd1 {[%emt 0:00:00]} Ra5 {[%emt 0:02:34]} 21. Qh4 {[%emt 0:00:00]} Qc6 {[%emt 0:25:52]} 22. a3 {[%emt 0:00:00]} Rha8 {[%emt 0:12:30]} 23. d5 {[%emt 0:00:00]} exd5 {[%emt 0:00:09]} 24. Nd4 {[%emt 0:00:00]} Qd7 {[%emt 0:00:06]} 25. e4 {[%emt 0:00:00]} Bc5 {[%emt 0:08:57]} 26. e5 {[%emt 0:00:00]} Rxa3 {[%emt 0:03:29]} 27. Rxa3 {[%emt 0:00:35]} Rxa3 {[%emt 0:00:57]} 28. exf6+ {[%emt 0:00:15]} Kd8 {[%emt 0:02:08]} 29. Kf1 {[%emt 0:01:31]} c3 {[%emt 0:03:04]} 30. Qf4 {[%emt 0:00:40]} Qb7 {[%emt 0:02:06]} 31. Nc2 {[%emt 0:01:04]} Rb3 {[%emt 0:01:47]} 32. Qf5 {[%emt 0:01:47]} Rb1 {[%emt 0:05:50]} 33. Rxb1 {[%emt 0:00:02]} Qxb1+ {[%emt 0:00:02]} 34. Ke2 {[%emt 0:00:01]} Qb5+ {[%emt 0:00:17]} 35. Ke1 {[%emt 0:00:11]} d4 {[%emt 0:00:58]} 36. Nxd4 {[%emt 0:01:23]} Qe8+ {[%emt 0:01:19]} 37. Ne2 {[%emt 0:00:33]} Qe3 {[%emt 0:00:53]} 38. Qd5+ {[%emt 0:01:10]} Kc8 {[%emt 0:01:11]} 39. Qf5+ {[%emt 0:00:54]} Kd8 {[%emt 0:00:07]} 1/2-1/2

[Event "Marshall CC FIDE Premier April 2024"]
[Site "New York"]
[Date "2024.04.13"]
[Round "1.9"]
[White "Kurup, Siddharth"]
[Black "Ling, Chenxuan"]
[Result "1-0"]
[ECO "E46"]
[WhiteElo "1914"]
[BlackElo "1871"]
[Annotator "TA"]
[PlyCount "119"]
[EventDate "2024.02.02"]
[EventType "swiss"]
[EventCountry "USA"]
[SourceTitle "playchess.com"]
[Source "ChessBase"]
[SourceQuality "1"]
[TimeControl "5400+30"]

{[%evp 16,119,0,-8,0,-26,-27,-20,-23,-45,-25,-32,-12,-25,25,6,0,-50,0,0,27,9,29,0,22,0,22,-61,16,0,25,10,7,0,0,-198,34,-206,39,-231,-233,-241,-243,-377,-137,-158,0,0,41,28,38,0,0,0,0,0,36,32,38,31,29,0,27,31,23,31,33,0,0,0,0,0,5,5,10,10,59,59,59,22,22,12,59,59,301,189,286,268,558,535,643,502,725,709,668,565,1427,1034,5922,4509,5310,4945,5073,5073,2131,1783]} 1. d4 {[%emt 0:00:04]} Nf6 {[%emt 0:00:08]} 2. c4 {[%emt 0:00:07]} e6 {[%emt 0:00:05]} 3. Nc3 {[%emt 0:00:09]} Bb4 {[%emt 0:00:04]} 4. e3 {[%emt 0:00:10]} O-O {[%emt 0:00:12]} 5. Nge2 {[%emt 0:00:16]} d5 {[%emt 0:00:20]} 6. a3 {[%emt 0:00:20]} Be7 {[%emt 0:00:09]} 7. cxd5 {[%emt 0:01:06]} exd5 {[%emt 0:00:02]} 8. Nf4 {[%emt 0:01:23]} c6 {[%emt 0:01:42]} 9. Bd3 {[%emt 0:03:23]} Bd6 {[%emt 1:32:18]} 10. Nh5 {[%emt 0:10:24]} Nbd7 {[%emt 0:00:00]} 11. Ng3 {[%emt 0:00:34]} Re8 {[%emt 0:00:00] The position is equal.} 12. O-O {[%emt 0:04:19]} Nf8 {[%emt 0:00:00]} 13. Re1 {[%emt 0:01:22]} Ng6 {[%emt 0:00:00]} 14. b4 {[%emt 0:04:15]} b5 {[%emt 0:00:00]} (14... Bc7 $142) 15. Bd2 $11 {[%emt 0:05:47]} Bd7 {[%emt 0:00:00]} 16. Qb3 {[%emt 0:03:42]} (16. e4 $11) 16... a6 {[%emt 0:00:00]} (16... Ng4 $1 $15 17. Be2 h5) 17. f3 {[%emt 0:03:27]} Qc7 {[%emt 0:00:00]} 18. Nf1 {[%emt 0:04:12]} Qb6 {[%emt 0:00:00]} 19. Ng3 {[%emt 0:05:58]} Re7 {[%emt 0:00:00][%cal Og6f4]} 20. Bc2 {[%emt 0:11:22]} Rae8 {[%emt 0:00:00]} 21. a4 {[%emt 0:03:28]} (21. Nce2 $11) 21... Qb8 {[%emt 0:00:00]} (21... Nh4 $1 $15 22. Nf1 Qc7) 22. Nf1 {[%emt 0:01:19]} Qb6 {[%emt 0:00:00]} 23. axb5 {[%emt 0:01:11]} axb5 {[%emt 0:00:00]} 24. Ra2 {[%emt 0:02:47]} Nh4 {[%emt 0:00:00]} 25. Rea1 $2 {[%emt 0:05:53]} (25. Bd3 $11 {and White is okay.}) 25... Bf5 $2 {[%emt 0:00:00]} (25... Bh3 $1 $19 {[%cal Rh3g2]} 26. Ra6 Qc7) 26. Ng3 $2 {[%emt 0:05:11]} (26. Be1 $14 {stays ahead.} Bxc2 27. Qxc2) 26... Bxc2 $2 {[%emt 0:00:00]} (26... Bh3 $1 $19 {[%cal Rh3g2]} 27. Kf2 (27. Ra6 $2 Qc7 $19) 27... Bxg2 (27... Nxg2 $2 28. Ra6 $19)) 27. Rxc2 $4 {[%emt 0:00:45][%mdl 8192]} (27. Qxc2 $14 {was the only good move.} Rc8 (27... Bxb4 28. Nce4 $16) 28. Ra6) 27... Bxg3 $1 $19 {[%emt 0:00:00]} 28. hxg3 {[%emt 0:00:07]} Nf5 {[%emt 0:00:00][%csl LRe3,LRg3]} 29. Nd1 {[%emt 0:01:34]} (29. Qb2 {was called for.}) 29... Nxg3 $2 {[%emt 0:00:00]} (29... Nxd4 $19 30. Qd3 Nxc2 31. Qxc2 d4) 30. Rca2 $17 {[%emt 0:01:53]} Nf5 $2 {[%emt 0:00:00]} ({Better is} 30... Qb8 $17 {...Nfh5 would now be deadly.} 31. Be1 Nfh5) 31. Qc2 $11 {[%emt 0:01:20]} Nxd4 {[%emt 0:00:00]} 32. exd4 {[%emt 0:00:14]} Qxd4+ {[%emt 0:00:00] [#]} 33. Be3 $1 {[%emt 0:01:30]} Rxe3 {[%emt 0:00:00]} 34. Nxe3 {[%emt 0:00:08]} Qxe3+ {[%emt 0:00:00]} (34... Rxe3 35. Ra8+ Ne8 36. Qf2 $16) 35. Qf2 {[%emt 0:00:31] Qxe3 is the strong threat.} Qxf2+ {[%emt 0:00:00]} 36. Kxf2 {[%emt 0:00:18][%mdl 4096] Endgame. KRR-KRN} Nd7 {[%emt 0:00:00]} 37. Ra8 {[%emt 0:04:51]} Kf8 {[%emt 0:00:00]} 38. Rxe8+ {[%emt 0:00:56]} Kxe8 {[%emt 0:00:00] KR-KN} 39. Ra6 {[%emt 0:01:29]} Ne5 {[%emt 0:00:00]} 40. Ke3 {[%emt 0:00:16][%mdl 1024] Prevents Nd3. Black must now prevent f4. White has compensation.} Kd7 {[%emt 0:00:00]} 41. Kd4 {[%emt 0:00:39]} Kd6 {[%emt 0:00:00]} 42. Ra8 {[%emt 0:01:41]} Nd7 {[%emt 0:00:00]} 43. Rg8 {[%emt 0:00:32]} g6 {[%emt 0:00:00]} 44. Rg7 {[%emt 0:00:17][%csl LRf7,LRh7]} Ke6 {[%emt 0:00:00] And now ...Nf6 would win.} 45. Rxh7 {[%emt 0:00:35]} Nf8 {[%emt 0:00:00]} (45... Nb8 $11) 46. Rh8 $1 $14 {[%emt 0:00:30]} Nd7 {[%emt 0:00:00]} 47. Re8+ {[%emt 0:02:52]} Kd6 {[%emt 0:00:00]} 48. Rc8 {[%emt 0:00:48]} Ne5 {[%emt 0:00:00]} (48... g5 $1 $11) 49. f4 {[%emt 0:02:25]} Ng4 {[%emt 0:00:00]} ({Black should play} 49... Nd7 $1 $14) 50. Rf8 {[%emt 0:00:43]} Ke7 {[%emt 0:00:00]} (50... Nh6 $142 51. g4 Ke7) 51. Ra8 $1 $18 {[%emt 0:00:39]} Kd6 $2 {[%emt 0:00:00] [#]} (51... Nf6 52. Kc5 d4) 52. Ra7 $1 {[%emt 0:00:14] White is clearly winning.} Nh6 {[%emt 0:00:00] [#]} 53. g4 {[%emt 0:01:34][%cal Bg2g4,Bg4g5][%mdl 544] Repels Nf5+} Ke6 {[%emt 0:00:00]} (53... f5 54. g5) 54. g5 {[%emt 0:01:02]} Nf5+ {[%emt 0:00:00]} 55. Kc5 {[%emt 0:00:06]} d4 {[%emt 0:00:00][%cal Bd5d4,Bd4d3,Bd3d2][%mdl 32]} 56. Kxc6 {[%emt 0:00:30]} d3 {[%emt 0:00:00] [#]} 57. Ra3 $1 {[%emt 0:00:14]} (57. Kxb5 $2 d2 58. Ra1 Ne3 $19) 57... Nd4+ {[%emt 0:00:00]} 58. Kc5 {[%emt 0:00:21]} d2 {[%emt 0:00:00]} 59. Rd3 {[%emt 0:00:06]} (59. Kxd4 d1=Q+ (59... d1=B $2 60. Ra6+ Kf5 61. Rf6+ Kg4 62. Rxf7 $18) 60. Kc3 Qc1+ 61. Kb3 Qb1+ (61... Qxf4 $2 62. Kc2 $19) 62. Kc3 Kf5 $19) 59... Nf3 {[%emt 0:00:00]} 60. Rd5 {[%emt 0:02:21] Never resign too early!   Weighted Error Value: White=0.39/Black=0.60.  Loses game:     	White=3     	Black=1      Missed win:     	---       	Black=3      Mistake:       	White=3     	Black=8      Inaccurate:     	White=6     	Black=6      OK:         	White=16    	Black=11     Best:        	---       	Black=1      Strong:       	White=3     	Black=1      Brilliant:      	White=1     	---} (60. Rxf3 $2 {too greedy.} d1=Q (60... d1=B $2 {loses.} 61. f5+ Ke5 62. fxg6 $18) 61. Re3+ Kf5 62. Kxb5 Kxf4 $19) 1-0

[Event "Marshall CC FIDE Premier April 2024"]
[Site "New York"]
[Date "2024.04.13"]
[Round "1.10"]
[White "Gaw, Chloe"]
[Black "Chachere, Theodore"]
[Result "1/2-1/2"]
[ECO "E42"]
[WhiteElo "2052"]
[BlackElo "1897"]
[Annotator "RC"]
[PlyCount "82"]
[EventDate "2024.02.02"]
[EventType "swiss"]
[EventCountry "USA"]
[SourceTitle "playchess.com"]
[Source "ChessBase"]
[SourceQuality "1"]
[TimeControl "5400+30"]

1. d4 {[%emt 0:00:02]} Nf6 {[%emt 0:00:08]} 2. c4 {[%emt 0:00:04]} e6 {[%emt 0:00:03]} 3. Nc3 {[%emt 0:00:05]} Bb4 {[%emt 0:00:04]} 4. e3 {[%emt 0:00:04]} c5 {[%emt 0:00:24]} 5. Nge2 {[%emt 0:00:07]} b6 {[%emt 0:00:27]} 6. a3 {[%emt 0:02:19]} Ba5 {[%emt 0:00:06]} 7. Rb1 {[%emt 0:01:44]} Na6 {[%emt 0:00:59]} 8. f3 {[%emt 0:05:18]} O-O {[%emt 0:09:04]} 9. e4 {[%emt 0:22:24]} d5 {[%emt 0:05:46]} 10. e5 {[%emt 0:14:27]} Ne8 {[%emt 0:01:28]} 11. cxd5 {[%emt 0:02:30]} exd5 {[%emt 0:00:24]} 12. Ng3 {[%emt 0:03:57]} f6 {[%emt 0:10:06]} 13. exf6 {[%emt 0:05:09]} Nxf6 {[%emt 0:00:17]} 14. Be2 {[%emt 0:02:14]} c4 {[%emt 0:18:47]} 15. b4 {[%emt 0:05:26]} cxb3 {[%emt 0:01:01]} 16. Qxb3 {[%emt 0:00:05]} Nc7 {[%emt 0:08:09]} 17. O-O {[%emt 0:03:50]} Re8 {[%emt 0:02:22]} 18. Kh1 {[%emt 0:04:34]} Kh8 {[%emt 0:00:19]} 19. Bg5 {[%emt 0:05:34]} Bb7 {[%emt 0:01:23]} 20. Nb5 {[%emt 0:06:09]} Nxb5 {[%emt 0:10:07]} 21. Bxb5 {[%emt 0:00:20]} Re6 {[%emt 0:01:17]} 22. Nh5 {[%emt 0:01:35]} Rc8 {[%emt 0:06:52]} 23. Qd3 {[%emt 0:02:29]} Qd6 {[%emt 0:02:42]} 24. Nf4 {[%emt 0:04:58]} Re7 {[%emt 0:01:22]} 25. Qf5 {[%emt 0:00:22]} Rf8 {[%emt 0:01:19]} 26. Qh3 {[%emt 0:01:42]} Kg8 {[%emt 0:01:48]} 27. Bd3 {[%emt 0:01:14]} g6 {[%emt 0:01:21]} 28. Qg3 {[%emt 0:02:22]} Re3 {[%emt 0:03:43]} 29. Bh6 {[%emt 0:01:39]} Nh5 {[%emt 0:07:42]} 30. Nxh5 {[%emt 0:00:05]} Qxg3 {[%emt 0:00:09]} 31. Nxg3 {[%emt 0:00:13]} Rxd3 {[%emt 0:00:09]} 32. Bxf8 {[%emt 0:00:04]} Kxf8 {[%emt 0:00:07]} 33. Rfc1 {[%emt 0:01:35]} Rxd4 {[%emt 0:01:57]} 34. Rc7 {[%emt 0:00:35]} Ba6 {[%emt 0:00:19]} 35. Rxa7 {[%emt 0:00:12]} Bc4 {[%emt 0:02:14]} 36. h3 {[%emt 0:01:25]} h5 {[%emt 0:00:58]} 37. Nf1 {[%emt 0:00:48]} Rd3 {[%emt 0:00:06]} 38. a4 {[%emt 0:00:35]} d4 {[%emt 0:01:26]} 39. Rc1 {[%emt 0:00:43]} Rc3 {[%emt 0:01:08]} 40. Rd1 {[%emt 0:00:28]} Rd3 {[%emt 0:00:41]} 41. Rc1 {[%emt 0:00:35]} Rc3 {[%emt 0:00:07]} 1/2-1/2